Cogmind - Beta 17 @@@ ROGUE MODE // 2026.08.11 @ 14:25:02 Player: Blaf Result: Destroyed by G-47 Trooper with Particle Gun Performance ------------- Evolutions (0) 0 Regions Visited (1) 200 Robots Destroyed (8) 40 Value Destroyed (168) 168 Prototype IDs (0) 0 Alien Tech Used (0) 0 Bonus (0) 0 TOTAL SCORE: 408 Bonus ------- None Cogmind --------- Core Integrity 0/250 Matter 275/300 Energy 100/100 System Corruption 4% Temperature Cool (9) Movement Core (150) Ox2 Location -10/Materials Parts ------- > --- POWER (1) -------- (None) > --- PROPULSION (2) --- (None) > --- UTILITY (2) ------ Small Storage Unit ECM Suite > --- WEAPON (2) ------- (None) > --- INVENTORY (8) ---- Ion Engine Improved Hover Unit Improved Hover Unit Sensor Array Peak State ------------ > --- POWER ------------ Ion Engine > --- PROPULSION ------- Improved Hover Unit Improved Hover Unit > --- UTILITY ---------- Small Storage Unit Terrain Scan Processor > --- WEAPON ----------- Assault Rifle Light Assault Rifle > --- INVENTORY -------- Ion Engine Improved Hover Unit Improved Hover Unit [Rating: 10] Favorites ----------- Power Ion Engine Engine Ion Engine Propulsion Improved Hover Unit Leg Aluminum Leg Hover Unit Improved Hover Unit Utility Small Storage Unit Device ECM Suite Storage Small Storage Unit Processor Terrain Scan Processor Weapon Light Cannon Ballistic Gun Light Assault Rifle Ballistic Cannon Light Cannon Build | -11 -10 ------- Run | Yrd Mat Slots Evolved . | . . Power . | . . Propulsion . | . . Utility . | . . Weapon . | . . Parts Attached 14 | 5 9 Power 1 | 1 . Engine 1 | 1 . Core . | . . Reactor . | . . Propulsion 4 | 1 3 Treads . | . . Leg 2 | 1 1 Wheel . | . . Hover 2 | . 2 Flight . | . . Utility 5 | 1 4 Device 1 | . 1 Storage 3 | 1 2 Processor 1 | . 1 Hackware . | . . Protection . | . . Artifact . | . . Weapon 4 | 2 2 Energy Gun . | . . Energy Cannon . | . . Ballistic Gun 2 | 2 . Ballistic Cannon 2 | . 2 Launcher . | . . Special Weapon . | . . Impact Weapon . | . . Slashing Weapon . | . . Piercing Weapon . | . . Special Melee Weapon . | . . Unidentified Prototypes . | . . Parts Lost 5 | . 5 Power 1 | . 1 Propulsion 2 | . 2 Utility . | . . Weapon 2 | . 2 Highest Loss Streak 5 | . 5 To Critical Strikes . | . . Average Backups 3 | 1 3 Power . | . 1 Propulsion 1 | . 1 Utility . | . . Weapon . | . . Tool/Special . | . . Unused Backups 7 | . 7 Power 2 | . 2 Propulsion 3 | . 3 Utility 2 | . 2 Weapon . | . . Tool/Special . | . . Average Slot Usage (%) 81 | . 81 Engine 13 | . 13 Leg 5 | . 5 Hover 19 | . 19 Device 2 | . 2 Storage 12 | . 12 Processor 7 | . 7 Ballistic Gun 9 | . 9 Ballistic Cannon 8 | . 8 Peak Build Rating 10 | 5 10 Average Rating 7 | 4 7 On Entrance 2 | . 5 Avg Prop Armor Cover (%) . | . . Naked Turns . | . . Heaviest Build 18 | 13 18 Greatest Support 20 | 10 20 Greatest Overweight (x) 4 | 4 3 Average Overweight (x) . | 1 . Largest Inventory Capacity 10 | 8 10 Average Capacity 8 | 7 8 Most Carried 7 | 2 7 Average Carried 3 | 1 4 Final Capacity 8 | 8 8 Final Carried 4 | 2 4 Class Distribution -------------------- 100% | Mutant Dominant Class ---------------- Mutant | -10/Materials Resources | -11 -10 ----------- Run | Yrd Mat Matter Collected 434 | 235 199 Remotely . | . . Salvage Created 228 | . 228 Parts 14 | . 14 Haulers Intercepted 2 | . 2 Recyclers Shooed . | . . Parts Field Recycled . | . . Retrieved Matter . | . . Parts Self-Destructed . | . . Prevented . | . . Parts Restored . | . . Kills | -11 -10 ------- Run | Yrd Mat Combat Hostiles Destroyed 5 | . 5 Guns 3 | . 3 Cannons 2 | . 2 Classes Destroyed 4 | . 4 Builder 1 | . 1 Hauler 2 | . 2 Swarmer 1 | . 1 Grunt 4 | . 4 Best Kill Streak 2 | . 2 Combat Bots Only 2 | . 2 Max Kills in Single Turn 1 | . 1 Gunslinging . | . . Exploded . | . . Melee . | . . Uniques/NPCs Destroyed . | . . Combat | -11 -10 -------- Run | Yrd Mat Hostile Shots Fired 75 | . 75 Missed 13 | . 13 Hits 62 | . 62 Projectile 62 | . 62 Damage Taken 832 | . 832 Core 256 | . 256 Absorbed by Shields . | . . Core Remaining (%) 100 | 100 . Volleys Fired 45 | . 45 Largest 2 | . 2 Hottest 40 | . 40 Shots Fired 57 | . 57 Gun 26 | . 26 Cannon 31 | . 31 Launcher . | . . Special . | . . Kinetic 57 | . 57 Thermal . | . . Explosive . | . . Electromagnetic . | . . Robot Hit Streak 7 | . 7 Robot Miss Streak 3 | . 3 Penetration Max . | . . Secondary Targets . | . . Shots Hit Robots 38 | . 38 Core Hits 13 | . 13 Critical Kills . | . . Critical Parts Destroyed . | . . Critical Strikes 1 | . 1 Blast 1 | . 1 Melee Attacks . | . . Impact . | . . Slashing . | . . Piercing . | . . Sneak Attacks . | . . Combat Hostiles . | . . Follow-up Attacks . | . . Damage Inflicted 571 | . 571 Guns 164 | . 164 Cannons 396 | . 396 Explosions . | . . Melee . | . . Ramming 11 | . 11 Kinetic 560 | . 560 Thermal . | . . Explosive . | . . Electromagnetic . | . . Impact . | . . Slashing . | . . Piercing . | . . Highest Corruption 4 | . 4 Average Corruption 3 | . 3 Corruption Purged . | . . Corruption Blocked . | . . Effects 10 | . 10 Message Errors 4 | . 4 Matter Fused 4 | . 4 Energy Discharges 1 | . 1 Weapon Failures 1 | . 1 Overload Shots . | . . Overflow Damage . | . . Projectiles . | . . Explosions . | . . Melee . | . . Knockbacks 5 | . 5 Impact . | . . Kinetic 5 | . 5 Secondary . | . . Self-Inflicted Damage 4 | . 4 Shots . | . . Rammed 13 | . 13 Targets Rammed 13 | . 13 Kicked . | . . Crushed . | . . Highest Temperature 30 | . 30 Average Temperature 13 | . 13 Received Heat Transfer 306 | . 306 Siege Activations . | . . Martial Activations . | . . Shielding Activations . | . . Robots Disrupted . | . . Combat Hostiles . | . . Robots Corrupted . | . . Combat Hostiles . | . . Parts Fried . | . . Impact Corruptions . | . . Robots Melted . | . . Combat Hostiles . | . . Parts Melted . | . . Heat Transferred . | . . Parts Sabotaged . | . . Parts Stolen . | . . Parts Stripped . | . . Power Chain Reactions . | . . Alert | -11 -10 ------- Run | Yrd Mat Maximum Alert Level . | . . Low Security (%) 100 | 100 100 Level 1 . | . . Level 2 . | . . Level 3 . | . . Level 4 . | . . Level 5 . | . . High Security . | . . Max Security . | . . Peak Influence 65 | . 65 Initial . | . . Average 11 | . 13 Influence Increases 164 | . 164 Destroy 0b10 Robot/C 100 | . 100 Destroy 0b10 Robot/NC 15 | . 15 Destroy Leader 14 | . 14 Successful Hack 19 | . 19 Destroy Structure 1 | . 1 Lose Combat Pursuer 15 | . 15 Influence Decreases 164 | . 164 Time Decay 146 | . 146 Lost Part 13 | . 13 Purge Threat 5 | . 5 Squads Dispatched . | . . Investigation . | . . Extermination . | . . Reinforcement . | . . Assault . | . . Garrison . | . . Intercept . | . . Searches Triggered . | . . Construction Impeded . | . . Haulers Reinforced . | . . Active Scanning Responses . | . . Cargo Convoy Interrupts . | . . Stealth | -11 -10 --------- Run | Yrd Mat Distress Signals 3 | . 3 Communications Jammed . | . . Distress Signals . | . . Times Spotted 20 | . 20 Peak Tracking Total 5 | . 5 Tactical Retreats 3 | . 3 ECM-based Alert Blocks 5 | . 5 Traps | -11 -10 ------- Run | Yrd Mat Traps Triggered 2 | . 2 Indirectly . | . . Trap Hack Attempts . | . . Triggered . | . . Disarmed . | . . Reprogrammed . | . . Reused . | . . Traps Extracted . | . . Installed . | . . Triggered . | . . Machines | -11 -10 ---------- Run | Yrd Mat Machines Disabled . | . . Max in Single Turn . | . . Machines Repaired . | . . Machines Dismantled . | . . Machines Sabotaged . | . . Overloaded Fab Kills . | . . Hacking | -11 -10 --------- Run | Yrd Mat Machines Accessed 7 | . 7 Terminals 5 | . 5 Fabricators . | . . Repair Stations . | . . Recycling Units 2 | . 2 Scanalyzers . | . . Garrison Access . | . . Total Hacks 19 | . 19 Successful 9 | . 9 Failed 10 | . 10 Catastrophic 3 | . 3 Database Lockouts . | . . Manual 10 | . 10 Terminals 10 | . 10 Fabricators . | . . Repair Stations . | . . Recycling Units 9 | . 9 Scanalyzers . | . . Garrison Access . | . . Terminal Hacks 4 | . 4 Unreport Threat 2 | . 2 Zone Layout 2 | . 2 Fabricator Hacks . | . . Repair Station Hacks . | . . Recycling Unit Hacks 5 | . 5 Recycle Component 1 | . 1 Process 1 | . 1 Retrieve Matter 2 | . 2 Retrieve Components 1 | . 1 Scanalyzer . | . . Garrison Access Hacks . | . . Unauthorized Hacks . | . . Terminals . | . . Fabricators . | . . Repair Stations . | . . Recycling Units . | . . Scanalyzers . | . . Garrison Access . | . . Data Cores Recovered . | . . Used . | . . Hacking Detections 5 | . 5 Full Trace Events . | . . Feedback Events . | . . Feedback Blocked . | . . Robot Schematics Acquired . | . . Robots Built . | . . Authchips . | . . Time . | . . Total Robot Build Rating . | . . Part Schematics Acquired . | . . Parts Built . | . . Authchips . | . . Time . | . . Total Part Build Rating . | . . Part Studies Acquired . | . . Parts Repaired . | . . Time . | . . Parts Recycled 1 | . 1 Recycled Matter 30 | . 30 Retrieved Matter 30 | . 30 Retrieved Components . | . . Parts Scanalyzed . | . . Part Schematics Acquired . | . . Parts Damaged . | . . Bothacking | -11 -10 ------------ Run | Yrd Mat Used RIF Installer . | . . Robots Hacked . | . . Non-combat . | . . Combat . | . . Robot Hacks Applied . | . . Relay Couplers Released . | . . Fabnet Peak Effective % . | . . Robots Rewired . | . . Allies Hacked . | . . Hacks Repelled . | . . Allies | -11 -10 -------- Run | Yrd Mat Total Allies . | . . Largest Group . | . . Highest-Rated Group . | . . Highest-Rated Ally . | . . Total Orders . | . . Ally Attacks . | . . Total Damage . | . . Kills . | . . Allies Corrupted . | . . Allies Melted . | . . Intel | -11 -10 ------- Run | Yrd Mat Active Infowar (turns) 116 | . 116 ECM 116 | . 116 Robot Analysis Total . | . . Derelict Logs Recovered . | . . Drone Launches . | . . Drone Recoveries . | . . Exploration | -11 -10 ------------- Run | Yrd Mat Turns Passed 657 | 80 577 Spaces Moved 628 | 44 584 Core 21 | 14 7 Treads . | . . Legs 96 | 30 66 Wheels . | . . Hover 511 | . 511 Flight . | . . Fastest Speed 50 | 50 56 Average Speed 78 | 163 72 Slowest Speed 250 | 250 200 Overloaded Moves . | . . Propulsion Burnouts . | . . Robots Hopped . | . . Potential Cave-ins . | . . Cave-ins Triggered . | . . Exploration Rate (%) 40 | 4 77 Regions Visited 1 Branch Regions . Pre-discovered Areas . | . . Known Exits Taken . | . . Unknown Exits Taken 1 | 1 . Scrap Searched . | . . Spaces Dug . | . . Terrain Destroyed . | . . Melee . | . . Projectile . | . . AOE . | . . Terrain Rammed . | . . Walls Destroyed . | . . Machines Disabled . | . . Actions | -11 -10 --------- Run | Yrd Mat Total 727 | 50 677 Wait 9 | . 9 Move 627 | 43 584 Hop . | . . Pick Up 9 | 2 7 Fast Attach 12 | 5 7 Attach 2 | . 2 Detach 1 | . 1 Swap 1 | . 1 Drop 8 | . 8 Fire 45 | . 45 Melee . | . . Ram 13 | . 13 Kick . | . . Crush . | . . Escape Stasis . | . . Rewire . | . . Trap . | . . Miscellaneous . | . . Route ------- -11/Scrapyard -10/Materials (discovered 4 exits: [*Mat x3] / [*Min]) History --------- Turn | Location | Event 21 | -11/Scrapyard | Discovered new exit (range 16) 81 | -11/Scrapyard | Entered Materials 282 | -10/Materials | Discovered new exit (range 6) 300 | -10/Materials | Build established: Mutant 341 | -10/Materials | Discovered new exit (range 13) 389 | -10/Materials | Discovered new exit (range 16) 505 | -10/Materials | Discovered new exit (range 6) 643 | -10/Materials | Core integrity fell below 50% 653 | -10/Materials | Core integrity fell below 20% 658 | -10/Materials | Destroyed by G-47 Trooper with Particle Gun Last Messages --------------- 00638_ Acquired 3 matter. 00639_ Slammed into G-47 Trooper. 00646_ U-05 Engineer lays Concrete. 00647_ Slammed into G-47 Trooper. 00648_ U-05 Engineer lays Concrete. 00648_ Slammed into G-47 Trooper. 00651_ ECM Suite broken. 00651_ Destabilizing: Short circuit. 00652_ U-05 Engineer lays Concrete. 00653_ Slammed into G-47 Trooper. 00654_ The unstable cave ceiling collapses. 00654_ U-05 Engineer builds a Wall. 00654_ U-05 Engineer lays Concrete. 00654_ Slammed into G-47 Trooper. 00656_ U-05 Engineer lays Concrete. 00656_ Slammed into G-47 Trooper. 00657_ U-05 Engineer lays Concrete. 00657_ Slammed into G-47 Trooper. 00658_ U-05 Engineer lays Concrete. [Achievement: Back For More] Map ----- +----------------------------------------------------+ | ??? #??? #????????# #?????# """ | | ?### ### #????????# ####### | | ?# # #??? ?## ## #+#### | | ?# # !!! ?# #!!! + | | ?# / !! ??# #!!! ###### | | ?# #???????# #!!! #????? | | ?# / #????????????# # #????? | | ??## ###????????????# #% #????? | | ???# #???????????????# ###+###????? | | ???# ################# ### ######## | | ???# [*% | | ???#### ###### | | ??????# "T" #????# | | ??????# ####### ########## | | ??????# u # # #????????? | | ??????# % + #????????? | | ??????# # ##+#####????? | | ??????# # ## #????? | | ####### = # ## #????? | | # # # ## #????# | | # # # ## ###### | | # """ # # #+### ## # | | # """ # ### #?# ## / | | # """ # %u ### ## # | | # + % ## ###### | | # # @g % ### ## #????# | | # ###;## ##+##### ## #????? | | # "# # # + ## #????? | | # T# "" # # # ## #????? | | # "# T" # # !== # ########????? | | #! # "" + # !== # #???????????? | | ####### # < # === # #???????????? | | ??????# # # # #???????????? | | ??????# ############ #???????????? | | ??????# # #?????# #???????????? | | ??????# # ####### #?????####### | | ??????###### + #????#! | | ???????????# #########????# | | ???????????# #????????????# | | ???????????# #????????????# | | ???????????######????????????######## | | ????????????????????????????????????? | | | | | | | | | | | | | | | | | +----------------------------------------------------+ Best States ------------- Heat Dissipation 25 Energy Generation 10 Energy Capacity 250 Matter Stores 300 Matter Capacity 300 Sight Range 16 Terrain Scan Density 85 ECM Strength 1 Evasion (%) 55 Item Schematics ----------------- None Robot Schematics ------------------ None Fabricated ------------ Nothing Repaired ---------- Nothing Studied --------- None Alien Tech Used ----------------- None Achievements -------------- Back For More Challenges ------------ None Game ------ Seed ShadingCoilAccelerator Manual? 0 Play Time 00:12:02 Cumulative 31.5 hours Start 2026.08.11 @ 14:14:27 End 2026.08.11 @ 14:25:02 Sessions 1 Manual Loads 0 Difficulty Rogue Special Mode None Game No. 50 Rogue 50 Adventurer 0 Explorer 0 Win Type - Total 0 Types 0/0/0/0/0/0/0/0/0/0 Lore% 8 Gallery% 20 Achievement% 19 Wizard Run 0 Options --------- Layout 1 ASCII 0 Keyboard 0 Movement Numpad Keybinds 0 Fullscreen 1 Font 24/Smallcaps Map View 50x35 Zoom Use 0% Tactical HUD 1 Map Filters NONE Filters NONE Steam 1 RUN: d2b55bad-1dce-40f1-a4cb-2aabbc5c72a8